[Event "Dalheimers Hus Rapid Open"]
[Site "Dalheimers Hus, Slottsskogsgatan 12, Gothenburg, Sweden"]
[Date "2024.04.14"]
[Round "2.7"]
[White "Aaberg, Anton"]
[Black "Eriksson, Kristian"]
[Result "1/2-1/2"]
[TimeControl "15 minutes + 5 seconds per move from move one."]
[WhiteTitle "IM"]
[WhiteFideId "1701991"]
[BlackFideId "1705172"]
[WhiteElo "2346"]
[BlackElo "1961"]

1. e4 {[%clk 00:15:06]} {[%emt 00:00:03]} e5 {[%clk 00:15:06]} {[%emt
00:00:04]} 2. Nf3 {[%clk 00:15:08]} {[%emt 00:00:04]} Nc6 {[%clk 00:15:08]}
{[%emt 00:00:03]} 3. d4 {[%clk 00:15:02]} {[%emt 00:00:11]} exd4 {[%clk
00:15:08]} {[%emt 00:00:05]} 4. Nxd4 {[%clk 00:15:05]} d6 {[%clk 00:15:04]}
{[%emt 00:00:09]} 5. Nc3 {[%clk 00:15:08]} {[%emt 00:00:03]} Nf6 {[%clk
00:15:05]} {[%emt 00:00:03]} 6. Bc4 {[%clk 00:14:58]} {[%emt 00:00:15]} Be7
{[%clk 00:14:56]} {[%emt 00:00:14]} 7. O-O {[%clk 00:14:57]} {[%emt 00:00:06]}
O-O {[%clk 00:14:56]} {[%emt 00:00:05]} 8. Re1 {[%clk 00:14:50]} {[%emt
00:00:12]} Nxd4 {[%clk 00:13:06]} {[%emt 00:01:56]} 9. Qxd4 {[%clk 00:14:52]}
{[%emt 00:00:02]} Ng4 {[%clk 00:12:40]} {[%emt 00:00:31]} 10. Nd5 {[%clk
00:14:31]} {[%emt 00:00:26]} Bh4 {[%clk 00:12:34]} {[%emt 00:00:10]} 11. g3
{[%clk 00:14:24]} {[%emt 00:00:12]} c6 {[%clk 00:12:24]} {[%emt 00:00:16]} 12.
Ne3 {[%clk 00:13:08]} {[%emt 00:01:20]} Bf6 {[%clk 00:11:43]} {[%emt 00:00:45]}
13. Qd1 {[%clk 00:13:03]} {[%emt 00:00:11]} Nxe3 {[%clk 00:11:01]} {[%emt
00:00:48]} 14. Rxe3 {[%clk 00:13:05]} {[%emt 00:00:01]} Be6 {[%clk 00:10:46]}
{[%emt 00:00:21]} 15. Bd3 {[%clk 00:10:32]} {[%emt 00:02:38]} Re8 {[%clk
00:10:18]} {[%emt 00:00:33]} 16. c3 {[%clk 00:10:19]} {[%emt 00:00:18]} Qb6
{[%clk 00:08:48]} {[%emt 00:01:35]} 17. Qc2 {[%clk 00:09:11]} {[%emt 00:01:13]}
h6 {[%clk 00:07:41]} {[%emt 00:01:12]} 18. Re1 {[%clk 00:09:10]} {[%emt
00:00:06]} Bg5 {[%clk 00:06:50]} {[%emt 00:00:57]} 19. Bxg5 {[%clk 00:08:07]}
{[%emt 00:01:08]} hxg5 {[%clk 00:06:53]} {[%emt 00:00:02]} 20. Qd2 {[%clk
00:07:37]} {[%emt 00:00:33]} f6 {[%clk 00:05:59]} {[%emt 00:00:59]} 21. Kg2
{[%clk 00:06:48]} {[%emt 00:00:55]} Rad8 {[%clk 00:05:33]} {[%emt 00:00:32]} 22.
f4 {[%clk 00:06:29]} {[%emt 00:00:24]} gxf4 {[%clk 00:05:13]} {[%emt 00:00:25]}
23. gxf4 {[%clk 00:06:33]} Qc5 {[%clk 00:04:51]} {[%emt 00:00:27]} 24. Qf2
{[%clk 00:05:32]} {[%emt 00:01:05]} Qxf2+ {[%clk 00:04:21]} {[%emt 00:00:35]}
25. Kxf2 {[%clk 00:05:36]} d5 {[%clk 00:04:13]} {[%emt 00:00:13]} 26. e5 {[%clk
00:05:25]} {[%emt 00:00:16]} fxe5 {[%clk 00:04:00]} {[%emt 00:00:18]} 27. Rxe5
{[%clk 00:05:29]} {[%emt 00:00:01]} Bf7 {[%clk 00:03:46]} {[%emt 00:00:19]} 28.
Rg5 {[%clk 00:05:24]} {[%emt 00:00:10]} Rd6 {[%clk 00:03:31]} {[%emt 00:00:21]}
29. Rag1 {[%clk 00:05:24]} {[%emt 00:00:04]} g6 {[%clk 00:02:55]} {[%emt
00:00:42]} 30. Bxg6 {[%clk 00:04:30]} {[%emt 00:00:59]} Bxg6 {[%clk 00:02:55]}
{[%emt 00:00:04]} 31. Rxg6+ {[%clk 00:04:34]} {[%emt 00:00:02]} Rxg6 {[%clk
00:02:56]} {[%emt 00:00:03]} 32. Rxg6+ {[%clk 00:04:37]} {[%emt 00:00:02]} Kf7
{[%clk 00:02:42]} {[%emt 00:00:19]} 33. Rd6 {[%clk 00:03:51]} {[%emt 00:00:50]}
Rh8 {[%clk 00:01:42]} {[%emt 00:01:06]} 34. Rd7+ {[%clk 00:03:36]} {[%emt
00:00:21]} Ke6 {[%clk 00:01:36]} {[%emt 00:00:11]} 35. Rxb7 {[%clk 00:03:39]}
{[%emt 00:00:02]} Rxh2+ {[%clk 00:01:37]} {[%emt 00:00:03]} 36. Kg3 {[%clk
00:03:28]} {[%emt 00:00:16]} Rh1 {[%clk 00:01:13]} {[%emt 00:00:30]} 37. Rxa7
{[%clk 00:03:17]} {[%emt 00:00:16]} Kf5 {[%clk 00:00:56]} {[%emt 00:00:21]} 38.
Rf7+ {[%clk 00:03:14]} {[%emt 00:00:08]} Ke4 {[%clk 00:00:56]} {[%emt
00:00:05]} 39. Re7+ {[%clk 00:03:15]} {[%emt 00:00:05]} Kd3 {[%clk 00:00:55]}
{[%emt 00:00:05]} 40. f5 {[%clk 00:02:36]} {[%emt 00:00:44]} c5 {[%clk
00:00:43]} {[%emt 00:00:18]} 41. Kg2 {[%clk 00:01:50]} {[%emt 00:00:52]} Rh8
{[%clk 00:00:34]} {[%emt 00:00:13]} 42. f6 {[%clk 00:01:34]} {[%emt 00:00:22]}
d4 {[%clk 00:00:34]} {[%emt 00:00:05]} 43. Rc7 {[%clk 00:01:22]} {[%emt
00:00:17]} dxc3 {[%clk 00:00:32]} {[%emt 00:00:07]} 44. bxc3 {[%clk 00:01:20]}
{[%emt 00:00:07]} c4 {[%clk 00:00:36]} {[%emt 00:00:02]} 45. f7 {[%clk
00:01:11]} {[%emt 00:00:13]} Kxc3 {[%clk 00:00:36]} {[%emt 00:00:05]} 46. Kf3
{[%clk 00:01:15]} Kd3 {[%clk 00:00:31]} {[%emt 00:00:09]} 47. Rd7+ {[%clk
00:01:18]} {[%emt 00:00:02]} Kc2 {[%clk 00:00:31]} {[%emt 00:00:05]} 48. Re7
{[%clk 00:01:00]} {[%emt 00:00:23]} Rf8 {[%clk 00:00:29]} {[%emt 00:00:07]} 49.
Ke4 {[%clk 00:00:59]} {[%emt 00:00:05]} c3 {[%clk 00:00:27]} {[%emt 00:00:08]}
50. Ke5 {[%clk 00:00:59]} {[%emt 00:00:05]} Kb2 {[%clk 00:00:21]} {[%emt
00:00:10]} 51. a4 {[%clk 00:01:03]} c2 {[%clk 00:00:23]} {[%emt 00:00:03]} 52.
Rb7+ {[%clk 00:01:03]} {[%emt 00:00:05]} Ka3 {[%clk 00:00:23]} {[%emt
00:00:05]} 53. Rc7 {[%clk 00:00:56]} {[%emt 00:00:14]} Rxf7 {[%clk 00:00:20]}
{[%emt 00:00:07]} 1/2-1/2

[Event "Dalheimers Hus Rapid Open"]
[Site "Dalheimers Hus, Slottsskogsgatan 12, Gothenburg, Sweden"]
[Date "2024.04.14"]
[Round "2.8"]
[White "Fransson, Lennart"]
[Black "Andreasson, Ingvar"]
[Result "0-1"]
[TimeControl "15 minutes + 5 seconds per move from move one."]
[WhiteFideId "1706756"]
[BlackFideId "1700294"]
[WhiteElo "1970"]
[BlackElo "2323"]

1. c4 {[%clk 00:15:05]} {[%emt 00:00:04]} c6 {[%clk 00:14:54]} {[%emt
00:00:17]} 2. g3 {[%clk 00:15:05]} {[%emt 00:00:04]} d5 {[%clk 00:14:58]}
{[%emt 00:00:02]} 3. Bg2 {[%clk 00:15:08]} {[%emt 00:00:01]} g6 {[%clk
00:14:54]} {[%emt 00:00:10]} 4. Nf3 {[%clk 00:15:08]} {[%emt 00:00:04]} Bg7
{[%clk 00:14:57]} {[%emt 00:00:03]} 5. Qc2 {[%clk 00:14:49]} {[%emt 00:00:23]}
e5 {[%clk 00:13:17]} {[%emt 00:01:46]} 6. O-O {[%clk 00:14:45]} {[%emt
00:00:08]} Ne7 {[%clk 00:13:19]} {[%emt 00:00:04]} 7. d3 {[%clk 00:14:39]}
{[%emt 00:00:10]} O-O {[%clk 00:13:00]} {[%emt 00:00:25]} 8. Nbd2 {[%clk
00:14:34]} {[%emt 00:00:10]} h6 {[%clk 00:12:07]} {[%emt 00:00:58]} 9. Rb1
{[%clk 00:14:36]} {[%emt 00:00:03]} Be6 {[%clk 00:12:08]} {[%emt 00:00:04]} 10.
b4 {[%clk 00:14:24]} {[%emt 00:00:16]} Nd7 {[%clk 00:12:07]} {[%emt 00:00:07]}
11. b5 {[%clk 00:12:47]} {[%emt 00:01:42]} cxb5 {[%clk 00:11:36]} {[%emt
00:00:36]} 12. Rxb5 {[%clk 00:12:32]} {[%emt 00:00:21]} Qc7 {[%clk 00:10:48]}
{[%emt 00:00:52]} 13. Ba3 {[%clk 00:12:05]} {[%emt 00:00:32]} Rfe8 {[%clk
00:10:52]} 14. Qb1 {[%clk 00:11:17]} {[%emt 00:00:53]} dxc4 {[%clk 00:09:27]}
{[%emt 00:01:31]} 15. Rxb7 {[%clk 00:09:08]} {[%emt 00:02:13]} Qa5 {[%clk
00:09:25]} {[%emt 00:00:07]} 16. Bb4 {[%clk 00:08:30]} {[%emt 00:00:42]} Qa6
{[%clk 00:09:29]} {[%emt 00:00:02]} 17. Bxe7 {[%clk 00:08:11]} {[%emt
00:00:23]} cxd3 {[%clk 00:07:38]} {[%emt 00:01:57]} 18. exd3 {[%clk 00:06:28]}
{[%emt 00:01:47]} Nb6 {[%clk 00:06:14]} {[%emt 00:01:29]} 19. Rxb6 {[%clk
00:05:26]} {[%emt 00:01:08]} axb6 {[%clk 00:06:03]} {[%emt 00:00:16]} 20. Bd6
{[%clk 00:04:14]} {[%emt 00:01:17]} Bxa2 {[%clk 00:04:05]} {[%emt 00:02:04]} 21.
Qb4 {[%clk 00:04:12]} {[%emt 00:00:06]} Bd5 {[%clk 00:03:31]} {[%emt 00:00:40]}
22. Nc4 {[%clk 00:03:50]} {[%emt 00:00:25]} b5 {[%clk 00:03:05]} {[%emt
00:00:32]} 23. Ncxe5 {[%clk 00:03:30]} {[%emt 00:00:24]} Rad8 {[%clk 00:01:55]}
{[%emt 00:01:15]} 24. Be7 {[%clk 00:03:04]} {[%emt 00:00:32]} Rc8 {[%clk
00:01:47]} {[%emt 00:00:14]} 25. Re1 {[%clk 00:02:30]} {[%emt 00:00:38]} Qb7
{[%clk 00:01:39]} {[%emt 00:00:13]} 26. Bd6 {[%clk 00:01:09]} {[%emt 00:01:25]}
Bxe5 {[%clk 00:01:36]} {[%emt 00:00:09]} 27. Bxe5 {[%clk 00:00:58]} {[%emt
00:00:16]} Bxf3 {[%clk 00:01:34]} {[%emt 00:00:06]} 28. Bxf3 {[%clk 00:00:49]}
{[%emt 00:00:15]} Qxf3 {[%clk 00:01:38]} {[%emt 00:00:01]} 0-1

[Event "Dalheimers Hus Rapid Open"]
[Site "Dalheimers Hus, Slottsskogsgatan 12, Gothenburg, Sweden"]
[Date "2024.04.14"]
[Round "2.9"]
[White "Rydstrom, Tom"]
[Black "Svensson, Leif"]
[Result "1-0"]
[TimeControl "15 minutes + 5 seconds per move from move one."]
[WhiteTitle "FM"]
[WhiteFideId "1714830"]
[BlackFideId "1702459"]
[WhiteElo "2313"]
[BlackElo "1952"]

1. d4 {[%clk 00:15:06]} {[%emt 00:00:04]} d5 {[%clk 00:15:09]} {[%emt
00:00:01]} 2. Nc3 {[%clk 00:15:08]} {[%emt 00:00:04]} Nf6 {[%clk 00:15:07]}
{[%emt 00:00:07]} 3. Bg5 {[%clk 00:15:10]} {[%emt 00:00:03]} c5 {[%clk
00:14:10]} {[%emt 00:01:02]} 4. e3 {[%clk 00:15:13]} {[%emt 00:00:02]} e6
{[%clk 00:14:14]} {[%emt 00:00:01]} 5. Nf3 {[%clk 00:15:04]} {[%emt 00:00:14]}
Nc6 {[%clk 00:13:56]} {[%emt 00:00:23]} 6. Bb5 {[%clk 00:14:15]} {[%emt
00:00:54]} cxd4 {[%clk 00:13:23]} {[%emt 00:00:38]} 7. exd4 {[%clk 00:14:18]}
{[%emt 00:00:02]} Be7 {[%clk 00:11:05]} {[%emt 00:02:23]} 8. O-O {[%clk
00:14:08]} {[%emt 00:00:14]} O-O {[%clk 00:11:07]} {[%emt 00:00:04]} 9. Re1
{[%clk 00:14:03]} {[%emt 00:00:10]} Qc7 {[%clk 00:08:38]} {[%emt 00:02:34]} 10.
a3 {[%clk 00:12:37]} {[%emt 00:01:32]} a6 {[%clk 00:08:21]} {[%emt 00:00:21]}
11. Bd3 {[%clk 00:12:35]} {[%emt 00:00:07]} h6 {[%clk 00:08:25]} 12. Bh4 {[%clk
00:12:35]} {[%emt 00:00:05]} b5 {[%clk 00:08:09]} {[%emt 00:00:20]} 13. Ne2
{[%clk 00:12:38]} {[%emt 00:00:03]} Ne4 {[%clk 00:07:51]} {[%emt 00:00:23]} 14.
Bxe7 {[%clk 00:12:36]} {[%emt 00:00:07]} Nxe7 {[%clk 00:07:51]} {[%emt
00:00:05]} 15. c3 {[%clk 00:11:16]} {[%emt 00:01:25]} f5 {[%clk 00:07:43]}
{[%emt 00:00:13]} 16. Bc2 {[%clk 00:09:26]} {[%emt 00:01:56]} g5 {[%clk
00:07:35]} {[%emt 00:00:14]} 17. Nc1 {[%clk 00:08:48]} {[%emt 00:00:42]} Ng6
{[%clk 00:07:09]} {[%emt 00:00:31]} 18. Nd3 {[%clk 00:08:48]} {[%emt 00:00:05]}
Qg7 {[%clk 00:04:46]} {[%emt 00:02:28]} 19. Nfe5 {[%clk 00:08:44]} {[%emt
00:00:09]} Ra7 {[%clk 00:04:27]} {[%emt 00:00:24]} 20. a4 {[%clk 00:08:38]}
{[%emt 00:00:11]} Nd6 {[%clk 00:03:51]} {[%emt 00:00:42]} 21. axb5 {[%clk
00:08:38]} {[%emt 00:00:05]} Nxe5 {[%clk 00:03:43]} {[%emt 00:00:12]} 22. Nxe5
{[%clk 00:08:07]} {[%emt 00:00:35]} axb5 {[%clk 00:03:04]} {[%emt 00:00:45]} 23.
Bd3 {[%clk 00:06:56]} {[%emt 00:01:16]} Nc4 {[%clk 00:01:36]} {[%emt 00:01:33]}
24. Bxc4 {[%clk 00:06:25]} {[%emt 00:00:36]} dxc4 {[%clk 00:01:32]} {[%emt
00:00:09]} 25. Rxa7 {[%clk 00:06:19]} {[%emt 00:00:11]} Qxa7 {[%clk 00:01:36]}
{[%emt 00:00:01]} 26. Qa1 {[%clk 00:06:23]} {[%emt 00:00:01]} Qxa1 {[%clk
00:01:10]} {[%emt 00:00:32]} 27. Rxa1 {[%clk 00:06:26]} Bb7 {[%clk 00:01:14]}
28. h4 {[%clk 00:05:36]} {[%emt 00:00:54]} Ra8 {[%clk 00:01:16]} {[%emt
00:00:04]} 29. Rxa8+ {[%clk 00:04:16]} {[%emt 00:01:24]} Bxa8 {[%clk 00:01:20]}
{[%emt 00:00:02]} 30. hxg5 {[%clk 00:04:20]} {[%emt 00:00:01]} hxg5 {[%clk
00:01:23]} {[%emt 00:00:02]} 31. g3 {[%clk 00:04:22]} {[%emt 00:00:03]} Kg7
{[%clk 00:01:19]} {[%emt 00:00:10]} 32. Kf1 {[%clk 00:04:25]} {[%emt 00:00:02]}
Kf6 {[%clk 00:00:47]} {[%emt 00:00:36]} 33. Ke2 {[%clk 00:03:10]} {[%emt
00:01:19]} Bb7 {[%clk 00:00:20]} {[%emt 00:00:33]} 34. Kd2 {[%clk 00:03:08]}
1-0

[Event "Dalheimers Hus Rapid Open"]
[Site "Dalheimers Hus, Slottsskogsgatan 12, Gothenburg, Sweden"]
[Date "2024.04.14"]
[Round "2.10"]
[White "Wesslen, Ulf"]
[Black "Hamark, Jesper"]
[Result "0-1"]
[TimeControl "15 minutes + 5 seconds per move from move one."]
[WhiteFideId "1705199"]
[BlackFideId "1704338"]
[WhiteElo "1949"]
[BlackElo "2301"]

1. e4 {[%clk 00:14:57]} {[%emt 00:00:12]} c5 {[%clk 00:14:52]} {[%emt
00:00:19]} 2. Nf3 {[%clk 00:14:51]} {[%emt 00:00:10]} g6 {[%clk 00:14:47]}
{[%emt 00:00:11]} 3. d4 {[%clk 00:14:26]} {[%emt 00:00:29]} cxd4 {[%clk
00:14:50]} {[%emt 00:00:03]} 4. Nxd4 {[%clk 00:14:15]} {[%emt 00:00:15]} Nc6
{[%clk 00:14:44]} {[%emt 00:00:11]} 5. Be3 {[%clk 00:13:37]} {[%emt 00:00:43]}
Bg7 {[%clk 00:14:19]} {[%emt 00:00:31]} 6. c3 {[%clk 00:13:14]} {[%emt
00:00:28]} Nf6 {[%clk 00:13:40]} {[%emt 00:00:44]} 7. Nd2 {[%clk 00:12:57]}
{[%emt 00:00:22]} O-O {[%clk 00:13:38]} {[%emt 00:00:07]} 8. Be2 {[%clk
00:12:20]} {[%emt 00:00:41]} d6 {[%clk 00:11:23]} {[%emt 00:02:21]} 9. O-O
{[%clk 00:11:50]} {[%emt 00:00:34]} Bd7 {[%clk 00:11:27]} {[%emt 00:00:02]} 10.
f4 {[%clk 00:10:33]} {[%emt 00:01:22]} a6 {[%clk 00:11:07]} {[%emt 00:00:25]}
11. Bf3 {[%clk 00:09:13]} {[%emt 00:01:24]} e5 {[%clk 00:10:41]} {[%emt
00:00:31]} 12. N4b3 {[%clk 00:08:35]} {[%emt 00:00:43]} exf4 {[%clk 00:10:41]}
{[%emt 00:00:05]} 13. Bxf4 {[%clk 00:07:48]} {[%emt 00:00:52]} Ne5 {[%clk
00:10:45]} {[%emt 00:00:02]} 14. Qe2 {[%clk 00:06:51]} {[%emt 00:01:02]} Qc7
{[%clk 00:10:35]} {[%emt 00:00:14]} 15. Nd4 {[%clk 00:06:19]} {[%emt 00:00:37]}
Rfe8 {[%clk 00:09:56]} {[%emt 00:00:43]} 16. Kh1 {[%clk 00:05:59]} {[%emt
00:00:25]} Rad8 {[%clk 00:08:44]} {[%emt 00:01:18]} 17. a4 {[%clk 00:05:14]}
{[%emt 00:00:49]} h6 {[%clk 00:08:25]} {[%emt 00:00:24]} 18. g3 {[%clk
00:03:39]} {[%emt 00:01:40]} Bh3 {[%clk 00:08:03]} {[%emt 00:00:27]} 19. Bg2
{[%clk 00:03:30]} {[%emt 00:00:15]} Bxg2+ {[%clk 00:07:23]} {[%emt 00:00:45]}
20. Qxg2 {[%clk 00:03:22]} {[%emt 00:00:13]} Nh5 {[%clk 00:06:56]} {[%emt
00:00:32]} 21. Be3 {[%clk 00:03:10]} {[%emt 00:00:17]} Ng4 {[%clk 00:06:40]}
{[%emt 00:00:21]} 22. Bg1 {[%clk 00:03:05]} {[%emt 00:00:10]} Qd7 {[%clk
00:05:54]} {[%emt 00:00:51]} 23. a5 {[%clk 00:03:02]} {[%emt 00:00:08]} d5
{[%clk 00:04:00]} {[%emt 00:01:59]} 24. Rad1 {[%clk 00:02:43]} {[%emt
00:00:23]} dxe4 {[%clk 00:03:40]} {[%emt 00:00:25]} 25. Nxe4 {[%clk 00:02:36]}
{[%emt 00:00:12]} Qc7 {[%clk 00:03:44]} {[%emt 00:00:02]} 26. b4 {[%clk
00:02:10]} {[%emt 00:00:31]} Re7 {[%clk 00:02:06]} {[%emt 00:01:42]} 27. Nc5
{[%clk 00:01:50]} {[%emt 00:00:25]} Rde8 {[%clk 00:02:10]} 28. Qf3 {[%clk
00:01:40]} {[%emt 00:00:15]} f5 {[%clk 00:02:05]} {[%emt 00:00:10]} 29. Qd5+
{[%clk 00:01:38]} {[%emt 00:00:07]} Kh7 {[%clk 00:02:08]} {[%emt 00:00:02]} 30.
Nde6 {[%clk 00:01:42]} {[%emt 00:00:02]} Qe5 {[%clk 00:01:10]} {[%emt
00:01:02]} 31. Nxg7 {[%clk 00:01:41]} {[%emt 00:00:06]} Qxd5+ {[%clk 00:01:10]}
{[%emt 00:00:06]} 32. Rxd5 {[%clk 00:01:42]} {[%emt 00:00:03]} Kxg7 {[%clk
00:01:14]} {[%emt 00:00:02]} 33. Bd4+ {[%clk 00:01:45]} {[%emt 00:00:02]} Kf7
{[%clk 00:01:15]} {[%emt 00:00:03]} 34. Rd6 {[%clk 00:01:48]} {[%emt 00:00:02]}
Re1 {[%clk 00:00:34]} {[%emt 00:00:46]} 35. Rd7+ {[%clk 00:01:46]} {[%emt
00:00:08]} Kg8 {[%clk 00:00:32]} {[%emt 00:00:05]} 36. Rxe1 {[%clk 00:01:34]}
{[%emt 00:00:19]} Rxe1+ {[%clk 00:00:36]} {[%emt 00:00:01]} 37. Kg2 {[%clk
00:01:37]} {[%emt 00:00:02]} Re2+ {[%clk 00:00:39]} {[%emt 00:00:01]} 38. Kf3
{[%clk 00:01:37]} {[%emt 00:00:05]} Rxh2 {[%clk 00:00:43]} {[%emt 00:00:02]} 39.
Ne6 {[%clk 00:01:17]} {[%emt 00:00:25]} Nhf6 {[%clk 00:00:36]} {[%emt
00:00:11]} 40. Rd8+ {[%clk 00:01:08]} {[%emt 00:00:15]} Kf7 {[%clk 00:00:37]}
{[%emt 00:00:03]} 41. Nf4 {[%clk 00:01:11]} {[%emt 00:00:02]} g5 {[%clk
00:00:32]} {[%emt 00:00:11]} 42. Nd3 {[%clk 00:01:14]} {[%emt 00:00:02]} Ne4
{[%clk 00:00:33]} {[%emt 00:00:04]} 43. Ne5+ {[%clk 00:01:00]} {[%emt
00:00:20]} Nxe5+ {[%clk 00:00:31]} {[%emt 00:00:05]} 44. Bxe5 {[%clk 00:01:03]}
{[%emt 00:00:02]} Rd2 {[%clk 00:00:18]} {[%emt 00:00:18]} 45. Rc8 {[%clk
00:00:56]} {[%emt 00:00:12]} Rd7 {[%clk 00:00:21]} {[%emt 00:00:02]} 46. g4
{[%clk 00:00:58]} {[%emt 00:00:04]} Nd2+ {[%clk 00:00:22]} {[%emt 00:00:03]} 47.
Kg3 {[%clk 00:00:47]} {[%emt 00:00:16]} Ne4+ {[%clk 00:00:27]} {[%emt
00:00:01]} 48. Kf3 {[%clk 00:00:51]} {[%emt 00:00:02]} Nd2+ {[%clk 00:00:31]}
49. Kg3 {[%clk 00:00:55]} Ke6 {[%clk 00:00:34]} {[%emt 00:00:01]} 50. Re8+
{[%clk 00:00:52]} {[%emt 00:00:08]} Kd5 {[%clk 00:00:36]} {[%emt 00:00:03]} 51.
gxf5 {[%clk 00:00:51]} {[%emt 00:00:07]} Rf7 {[%clk 00:00:38]} {[%emt
00:00:03]} 52. Rd8+ {[%clk 00:00:39]} {[%emt 00:00:17]} Kxe5 {[%clk 00:00:41]}
{[%emt 00:00:02]} 53. Rxd2 {[%clk 00:00:42]} Kxf5 {[%clk 00:00:34]} {[%emt
00:00:12]} 54. Rd5+ {[%clk 00:00:29]} {[%emt 00:00:18]} Kg6 {[%clk 00:00:23]}
{[%emt 00:00:16]} 55. Rc5 {[%clk 00:00:29]} {[%emt 00:00:06]} h5 {[%clk
00:00:22]} {[%emt 00:00:05]} 56. Rc8 {[%clk 00:00:30]} {[%emt 00:00:05]} h4+
{[%clk 00:00:25]} {[%emt 00:00:02]} 57. Kg4 {[%clk 00:00:26]} {[%emt 00:00:08]}
Rf4+ {[%clk 00:00:29]} {[%emt 00:00:01]} 58. Kh3 {[%clk 00:00:31]} Rf3+ {[%clk
00:00:32]} {[%emt 00:00:02]} 59. Kg2 {[%clk 00:00:33]} {[%emt 00:00:02]} g4
{[%clk 00:00:24]} {[%emt 00:00:13]} 60. Rg8+ {[%clk 00:00:31]} {[%emt
00:00:07]} Kf5 {[%clk 00:00:28]} {[%emt 00:00:02]} 61. c4 {[%clk 00:00:24]}
{[%emt 00:00:12]} h3+ {[%clk 00:00:29]} {[%emt 00:00:03]} 62. Kh2 {[%clk
00:00:24]} {[%emt 00:00:06]} Rf2+ {[%clk 00:00:28]} {[%emt 00:00:06]} 63. Kg1
{[%clk 00:00:28]} Rg2+ {[%clk 00:00:28]} {[%emt 00:00:04]} 64. Kf1 {[%clk
00:00:28]} {[%emt 00:00:04]} Rc2 {[%clk 00:00:21]} {[%emt 00:00:13]} 65. b5
{[%clk 00:00:12]} {[%emt 00:00:22]} Rxc4 {[%clk 00:00:16]} {[%emt 00:00:09]} 66.
bxa6 {[%clk 00:00:16]} {[%emt 00:00:02]} bxa6 {[%clk 00:00:20]} 67. Rf8+ {[%clk
00:00:14]} {[%emt 00:00:06]} Kg5 {[%clk 00:00:15]} {[%emt 00:00:09]} 68. Rg8+
{[%clk 00:00:16]} {[%emt 00:00:05]} Kh4 {[%clk 00:00:19]} 69. Rg6 {[%clk
00:00:14]} {[%emt 00:00:07]} Kg3 {[%clk 00:00:20]} {[%emt 00:00:03]} 70. Rb6
{[%clk 00:00:06]} {[%emt 00:00:13]} Rc1+ {[%clk 00:00:11]} {[%emt 00:00:14]} 71.
Ke2 {[%clk 00:00:11]} h2 {[%clk 00:00:15]} 72. Rb3+ {[%clk 00:00:15]} {[%emt
00:00:01]} Kg2 {[%clk 00:00:18]} {[%emt 00:00:01]} 73. Rb2 {[%clk 00:00:11]}
{[%emt 00:00:09]} h1=Q {[%clk 00:00:06]} {[%emt 00:00:17]} 74. Ke3+ {[%clk
00:00:11]} {[%emt 00:00:06]} Kg3 {[%clk 00:00:08]} {[%emt 00:00:11]} 75. Re2
{[%clk 00:00:12]} {[%emt 00:00:05]} Qf3+ {[%clk 00:00:11]} {[%emt 00:00:02]} 76.
Kd2 {[%clk 00:00:16]} Rc2+ {[%clk 00:00:14]} {[%emt 00:00:02]} 0-1

[Event "Dalheimers Hus Rapid Open"]
[Site "Dalheimers Hus, Slottsskogsgatan 12, Gothenburg, Sweden"]
[Date "2024.04.14"]
[Round "2.11"]
[White "Svensson, Bengt"]
[Black "Jacobsson, Lennart"]
[Result "1-0"]
[TimeControl "15 minutes + 5 seconds per move from move one."]
[WhiteTitle "IM"]
[WhiteFideId "1700200"]
[BlackFideId "1753320"]
[WhiteElo "2281"]
[BlackElo "1929"]

1. e4 {[%emt 00:02:07]} d6 2. d4 {[%emt 00:00:03]} Nf6 {[%emt 00:00:02]} 3. Nc3
{[%emt 00:00:04]} c6 4. f4 {[%clk 00:00:00]} {[%emt 00:00:23]} Qa5 {[%clk
00:00:00]} {[%emt 00:00:09]} 5. Bd3 {[%clk 00:00:00]} {[%emt 00:00:26]} e5
{[%clk 00:00:00]} {[%emt 00:00:03]} 6. Nf3 {[%clk 00:00:00]} {[%emt 00:00:26]}
exd4 {[%clk 00:00:00]} {[%emt 00:00:17]} 7. Nxd4 {[%clk 00:00:00]} {[%emt
00:00:06]} Bg4 {[%clk 00:14:51]} {[%emt 00:01:11]} 8. Be2 {[%clk 00:13:39]}
{[%emt 00:01:31]} h5 {[%clk 00:13:21]} {[%emt 00:01:36]} 9. h3 {[%clk
00:12:25]} {[%emt 00:01:18]} Bd7 {[%clk 00:12:41]} {[%emt 00:00:46]} 10. Bf3
{[%clk 00:11:10]} {[%emt 00:01:20]} Na6 {[%clk 00:12:32]} {[%emt 00:00:15]} 11.
Nb3 {[%clk 00:10:48]} {[%emt 00:00:26]} Qc7 {[%clk 00:12:28]} {[%emt 00:00:09]}
12. Be3 {[%clk 00:10:25]} {[%emt 00:00:28]} O-O-O {[%clk 00:11:57]} {[%emt
00:00:37]} 13. Qe2 {[%clk 00:09:55]} {[%emt 00:00:35]} Kb8 {[%clk 00:11:56]}
{[%emt 00:00:06]} 14. Qf2 {[%clk 00:09:21]} {[%emt 00:00:38]} b6 {[%clk
00:11:45]} {[%emt 00:00:17]} 15. O-O-O {[%clk 00:08:01]} {[%emt 00:01:25]} g6
{[%clk 00:11:05]} {[%emt 00:00:44]} 16. Bd4 {[%clk 00:07:31]} {[%emt 00:00:35]}
Bg7 {[%clk 00:10:54]} {[%emt 00:00:16]} 17. e5 {[%clk 00:07:34]} {[%emt
00:00:02]} Ne8 {[%clk 00:05:37]} {[%emt 00:05:22]} 18. exd6 {[%clk 00:07:18]}
{[%emt 00:00:22]} Qc8 {[%clk 00:05:40]} 19. Rhe1 {[%clk 00:06:11]} {[%emt
00:01:12]} Be6 {[%clk 00:05:37]} {[%emt 00:00:08]} 20. Bxb6 {[%clk 00:05:34]}
{[%emt 00:00:42]} Rxd6 {[%clk 00:04:50]} {[%emt 00:00:52]} 21. Bxa7+ {[%clk
00:05:28]} {[%emt 00:00:11]} Ka8 {[%clk 00:04:51]} {[%emt 00:00:05]} 22. Bd4
{[%clk 00:04:52]} {[%emt 00:00:41]} Bxd4 {[%clk 00:03:13]} {[%emt 00:01:42]} 23.
Rxd4 {[%clk 00:04:45]} {[%emt 00:00:12]} Nb8 {[%clk 00:02:24]} {[%emt
00:00:54]} 24. Ra4+ {[%clk 00:04:06]} {[%emt 00:00:44]} Na6 {[%clk 00:02:07]}
{[%emt 00:00:22]} 25. Nb5 {[%clk 00:03:24]} {[%emt 00:00:48]} Rd7 {[%clk
00:01:31]} {[%emt 00:00:41]} 26. Qb6 {[%clk 00:02:57]} {[%emt 00:01:13]} 1-0